[Event "Czech Open-E Teams 2022"]
[Site "Pardubice"]
[Date "2022.07.17"]
[Round "6.21"]
[White "Cukrowski, Filip"]
[Black "Buchcar, Tomas"]
[Result "1/2-1/2"]
[ECO "A40"]
[WhiteElo "2378"]
[BlackElo "2207"]
[Annotator "ChessBase"]
[PlyCount "80"]
[EventDate "2022.07.14"]
[EventType "team-tourn"]
[EventCountry "CZE"]
[SourceTitle "playchess.com"]
[Source "ChessBase"]
[SourceQuality "1"]
[TimeControl "5400+30"]

1. d4 {[%emt 0:00:44]} c6 {[%emt 0:25:39]} 2. g3 Nf6 {[%emt 0:00:00]} 3. c4 {[%emt 0:25:48]} d5 {[%emt 0:00:00]} 4. Bg2 {[%emt 0:00:08]} Bf5 {[%emt 0:00:00]} 5. Nc3 {[%emt 0:00:29]} e6 {[%emt 0:00:00]} 6. Nf3 {[%emt 0:00:09]} Nbd7 {[%emt 0:00:00]} 7. O-O {[%emt 0:01:13]} dxc4 {[%emt 0:00:00]} 8. Re1 {[%emt 0:02:32]} Bb4 {[%emt 0:03:46]} 9. a3 {[%emt 0:05:09]} Bxc3 {[%emt 0:01:09]} 10. bxc3 {[%emt 0:00:01]} O-O {[%emt 0:00:34]} 11. Nd2 {[%emt 0:00:51]} Qa5 {[%emt 0:10:02]} 12. Bb2 {[%emt 0:02:06]} Nb6 {[%emt 0:00:22]} 13. e4 {[%emt 0:01:46]} Bg6 {[%emt 0:04:03]} 14. a4 {[%emt 0:17:22]} Rfe8 {[%emt 0:10:58]} 15. Qe2 {[%emt 0:12:39]} Nfd7 {[%emt 0:07:51]} 16. Nxc4 {[%emt 0:03:35]} Nxc4 {[%emt 0:00:15]} 17. Qxc4 {[%emt 0:00:01]} f6 {[%emt 0:00:26]} 18. Qb4 {[%emt 0:01:27]} Qc7 {[%emt 0:00:26]} 19. Ba3 {[%emt 0:01:03]} c5 {[%emt 0:02:14]} 20. dxc5 {[%emt 0:00:21]} Ne5 {[%emt 0:00:36]} 21. Reb1 {[%emt 0:02:53]} Rab8 {[%emt 0:01:50]} 22. f4 {[%emt 0:00:13]} Nc6 {[%emt 0:00:08]} 23. Qc4 {[%emt 0:00:40]} Bf7 {[%emt 0:00:16]} 24. Qe2 {[%emt 0:03:23]} e5 {[%emt 0:00:37]} 25. f5 {[%emt 0:00:59]} Red8 {[%emt 0:00:46]} 26. Rd1 {[%emt 0:02:10]} Na5 {[%emt 0:01:18]} 27. Rd5 {[%emt 0:05:22]} b6 {[%emt 0:06:06]} 28. cxb6 {[%emt 0:02:26]} axb6 {[%emt 0:00:01]} 29. Rxd8+ {[%emt 0:00:47]} Rxd8 {[%emt 0:00:18]} 30. Rd1 {[%emt 0:00:57]} Bb3 {[%emt 0:01:39]} 31. Rxd8+ {[%emt 0:00:28]} Qxd8 {[%emt 0:00:02]} 32. Bb4 {[%emt 0:02:31]} Qd1+ {[%emt 0:10:41]} 33. Qxd1 {[%emt 0:01:20]} Bxd1 {[%emt 0:00:01]} 34. Kf2 {[%emt 0:00:30]} Bxa4 {[%emt 0:00:06]} 35. Bf1 {[%emt 0:00:06]} Bb3 {[%emt 0:03:31]} 36. Bb5 {[%emt 0:00:10]} Kf7 {[%emt 0:00:52]} 37. Ke3 {[%emt 0:00:55]} Bc4 {[%emt 0:02:59]} 38. Bd7 {[%emt 0:00:45]} Nb3 {[%emt 0:00:44]} 39. Bc6 {[%emt 0:00:39]} b5 {[%emt 0:03:26]} 40. Bd7 {[%emt 0:00:53]} Nc1 {[%emt 0:00:51]} 1/2-1/2

[Event "Czech Open-E Teams 2022"]
[Site "Pardubice"]
[Date "2022.07.17"]
[Round "6.22"]
[White "Bach, Markus"]
[Black "Butkiewicz, Lukasz"]
[Result "0-1"]
[ECO "E18"]
[WhiteElo "2192"]
[BlackElo "2370"]
[Annotator "ChessBase"]
[PlyCount "86"]
[EventDate "2022.07.14"]
[EventType "team-tourn"]
[EventCountry "CZE"]
[SourceTitle "playchess.com"]
[Source "ChessBase"]
[SourceQuality "1"]
[TimeControl "5400+30"]

1. d4 {[%emt 0:00:14]} Nf6 {[%emt 0:01:08]} 2. Nf3 {[%emt 0:00:51]} b6 {[%emt 0:03:04]} 3. g3 {[%emt 0:02:14]} Bb7 {[%emt 0:02:13]} 4. Bg2 {[%emt 0:00:19]} e6 {[%emt 0:00:51]} 5. O-O {[%emt 0:00:41]} Be7 {[%emt 0:01:16]} 6. c4 {[%emt 0:00:48]} O-O {[%emt 0:00:36]} 7. Nc3 {[%emt 0:00:33]} d6 {[%emt 0:03:01]} 8. Qc2 {[%emt 0:02:02]} c5 {[%emt 0:03:07]} 9. dxc5 {[%emt 0:13:45]} bxc5 {[%emt 0:03:29]} 10. b3 {[%emt 0:01:03]} Nc6 {[%emt 0:02:40]} 11. Bb2 {[%emt 0:01:07]} a6 {[%emt 0:05:49]} 12. Rac1 {[%emt 0:07:58]} Qc7 {[%emt 0:01:12]} 13. Rfd1 {[%emt 0:01:57]} Rfd8 {[%emt 0:02:45]} 14. Na4 {[%emt 0:15:26]} e5 {[%emt 0:06:59]} 15. Ne1 {[%emt 0:11:15]} Rac8 {[%emt 0:17:48]} 16. e3 {[%emt 0:02:38]} Nb4 {[%emt 0:02:09]} 17. Qb1 {[%emt 0:01:04]} Bxg2 {[%emt 0:00:10]} 18. Kxg2 {[%emt 0:03:15]} Qb7+ {[%emt 0:01:52]} 19. Kg1 {[%emt 0:00:20]} g6 {[%emt 0:03:35]} 20. Nc3 {[%emt 0:03:27]} h5 {[%emt 0:00:48]} 21. Nd5 {[%emt 0:09:54]} Nbxd5 {[%emt 0:01:46]} 22. cxd5 {[%emt 0:00:08]} h4 {[%emt 0:00:46]} 23. Rc4 {[%emt 0:01:56]} hxg3 {[%emt 0:00:16]} 24. hxg3 {[%emt 0:00:07]} Bf8 {[%emt 0:06:13]} 25. Qd3 {[%emt 0:00:48]} Bg7 {[%emt 0:01:32]} 26. Ra4 {[%emt 0:02:28]} Ra8 {[%emt 0:00:09]} 27. e4 {[%emt 0:00:49]} Nd7 {[%emt 0:00:52]} 28. Bc3 {[%emt 0:03:38]} Nb6 {[%emt 0:04:27]} 29. Ra3 {[%emt 0:00:39]} Rdc8 {[%emt 0:00:44]} 30. Ba5 {[%emt 0:00:35]} Nd7 {[%emt 0:07:44]} 31. Ra4 {[%emt 0:00:19]} Qb5 {[%emt 0:01:14]} 32. Qc4 {[%emt 0:00:23]} Bh6 {[%emt 0:01:41]} 33. Nc2 {[%emt 0:01:15]} Nf6 {[%emt 0:03:05]} 34. Na3 {[%emt 0:00:42]} Qd7 {[%emt 0:00:04]} 35. Kg2 {[%emt 0:02:21]} Kg7 {[%emt 0:00:47]} 36. Qd3 {[%emt 0:03:39]} Rh8 {[%emt 0:00:35]} 37. Qf3 {[%emt 0:00:50]} Bg5 {[%emt 0:03:26]} 38. Kf1 {[%emt 0:00:18]} Ng4 {[%emt 0:01:55]} 39. Ke2 {[%emt 0:00:35]} Rh2 {[%emt 0:00:22]} 40. Rf1 {[%emt 0:00:23]} f5 {[%emt 0:01:50]} 41. Be1 {[%emt 0:01:41]} Nf6 {[%emt 0:01:41]} 42. exf5 {[%emt 0:00:58]} gxf5 {[%emt 0:00:03]} 43. Rh1 {[%emt 0:00:09]} e4 {[%emt 0:01:13]} 0-1

[Event "Czech Open-E Teams 2022"]
[Site "Pardubice"]
[Date "2022.07.17"]
[Round "6.23"]
[White "Mondrzycki, Bartlomiej"]
[Black "Zimmermann, Rene"]
[Result "1-0"]
[ECO "D02"]
[WhiteElo "2180"]
[BlackElo "2201"]
[Annotator "ChessBase"]
[PlyCount "65"]
[EventDate "2022.07.14"]
[EventType "team-tourn"]
[EventCountry "CZE"]
[SourceTitle "playchess.com"]
[Source "ChessBase"]
[SourceQuality "1"]
[TimeControl "5400+30"]

1. d4 {[%emt 0:03:55]} d5 {[%emt 0:02:51]} 2. Nf3 {[%emt 0:00:09]} c6 {[%emt 0:00:39]} 3. c4 {[%emt 0:00:17]} e6 {[%emt 0:02:06]} 4. g3 {[%emt 0:03:04]} f5 {[%emt 0:00:07]} 5. Bg2 {[%emt 0:00:18]} Nf6 {[%emt 0:00:09]} 6. O-O {[%emt 0:00:04]} Bd6 {[%emt 0:02:35]} 7. Bf4 {[%emt 0:00:15]} O-O {[%emt 0:03:16]} 8. Nbd2 {[%emt 0:00:25]} b6 9. Bxd6 {[%emt 0:17:32]} Qxd6 {[%emt 0:00:00]} 10. Ne5 {[%emt 0:01:30]} Nbd7 {[%emt 0:00:00]} 11. Ndf3 {[%emt 0:01:00]} Bb7 {[%emt 0:00:00]} 12. Qa4 {[%emt 0:06:07]} Rfc8 {[%emt 0:22:44]} 13. cxd5 {[%emt 0:15:47]} exd5 {[%emt 0:11:33]} 14. Rac1 {[%emt 0:03:10]} a5 {[%emt 0:09:34]} 15. Rfd1 {[%emt 0:06:34]} Rc7 {[%emt 0:09:29]} 16. Qc2 {[%emt 0:05:12]} g6 {[%emt 0:00:09]} 17. Qd2 {[%emt 0:00:14]} Ne4 {[%emt 0:07:22]} 18. Qh6 {[%emt 0:02:19]} Ndf6 {[%emt 0:06:01]} 19. Qf4 {[%emt 0:10:55]} Rf8 {[%emt 0:05:09]} 20. Nd3 {[%emt 0:10:51]} Qd8 {[%emt 0:03:27]} 21. Nfe5 {[%emt 0:02:47]} Qc8 {[%emt 0:05:19]} 22. f3 {[%emt 0:02:33]} Nh5 {[%emt 0:00:13]} 23. Qh4 {[%emt 0:00:55]} Nd6 {[%emt 0:02:31]} 24. Bh3 {[%emt 0:01:42]} Ba6 {[%emt 0:02:16]} 25. g4 {[%emt 0:02:25]} fxg4 {[%emt 0:00:15]} 26. Bxg4 {[%emt 0:00:04]} Nf5 {[%emt 0:00:06]} 27. Qg5 {[%emt 0:01:05]} Bxd3 {[%emt 0:03:12]} 28. Rxd3 {[%emt 0:00:13]} Nhg7 {[%emt 0:02:05]} 29. e4 {[%emt 0:00:49]} Ne6 {[%emt 0:00:24]} 30. Qd2 {[%emt 0:00:38]} Nd6 {[%emt 0:01:15]} 31. exd5 {[%emt 0:00:29]} cxd5 {[%emt 0:00:00]} 32. Bxe6+ {[%emt 0:00:09]} Qxe6 {[%emt 0:00:29]} 33. Rxc7 {[%emt 0:00:02]} 1-0

[Event "Czech Open-E Teams 2022"]
[Site "Pardubice"]
[Date "2022.07.17"]
[Round "6.24"]
[White "Bach, Ulf-Gunter"]
[Black "Daniel, Damian"]
[Result "0-1"]
[ECO "A80"]
[WhiteElo "2014"]
[BlackElo "2172"]
[Annotator "ChessBase"]
[PlyCount "74"]
[EventDate "2022.07.14"]
[EventType "team-tourn"]
[EventCountry "CZE"]
[SourceTitle "playchess.com"]
[Source "ChessBase"]
[SourceQuality "1"]
[TimeControl "5400+30"]

1. d4 {[%emt 0:00:03]} f5 {[%emt 0:00:04]} 2. Nc3 {[%emt 0:01:26]} Nf6 {[%emt 0:01:38]} 3. Bg5 {[%emt 0:00:33]} e6 {[%emt 0:00:21]} 4. g4 {[%emt 0:06:15]} Be7 {[%emt 0:05:45]} 5. gxf5 {[%emt 0:02:26]} exf5 {[%emt 0:00:22]} 6. Bg2 {[%emt 0:04:15]} d6 {[%emt 0:05:07]} 7. Qd3 {[%emt 0:02:25]} Nc6 {[%emt 0:04:34]} 8. O-O-O {[%emt 0:02:07]} Bd7 {[%emt 0:16:37]} 9. h4 {[%emt 0:04:39]} h6 {[%emt 0:13:28]} 10. Be3 {[%emt 0:09:01]} Ng4 {[%emt 0:02:38]} 11. Nf3 {[%emt 0:04:57]} O-O {[%emt 0:06:56]} 12. Nd5 {[%emt 0:07:17]} Nxe3 {[%emt 0:07:27]} 13. fxe3 {[%emt 0:05:33]} Bf6 {[%emt 0:01:10]} 14. Nf4 {[%emt 0:05:53]} Qe8 {[%emt 0:07:18]} 15. Nd2 {[%emt 0:04:43]} Kh8 {[%emt 0:05:17]} 16. Rdg1 {[%emt 0:04:03]} Ne7 {[%emt 0:00:47]} 17. e4 {[%emt 0:00:41]} Qf7 {[%emt 0:02:08]} 18. Kb1 {[%emt 0:07:34]} Rad8 {[%emt 0:03:20]} 19. e3 {[%emt 0:01:23]} c6 {[%emt 0:01:40]} 20. Bf3 {[%emt 0:00:27]} fxe4 {[%emt 0:02:26]} 21. Bxe4 {[%emt 0:01:20]} d5 {[%emt 0:00:20]} 22. Bg6 {[%emt 0:03:07]} Qg8 {[%emt 0:00:09]} 23. Nf3 {[%emt 0:02:27]} Be8 {[%emt 0:00:46]} 24. Ng5 {[%emt 0:07:28]} Bxg6 {[%emt 0:04:45]} 25. Qxg6 {[%emt 0:01:38]} Bxd4 {[%emt 0:02:21]} 26. Qd3 {[%emt 0:03:03]} Rxf4 {[%emt 0:00:38]} 27. exd4 {[%emt 0:01:24]} Rf6 {[%emt 0:04:20]} 28. b3 {[%emt 0:01:59]} Rdf8 {[%emt 0:00:56]} 29. Qg3 {[%emt 0:01:07]} g6 {[%emt 0:00:59]} 30. Qc7 {[%emt 0:02:29]} Nf5 {[%emt 0:00:38]} 31. Nf3 {[%emt 0:01:30]} Qg7 {[%emt 0:00:22]} 32. Qh2 {[%emt 0:01:42]} Re6 {[%emt 0:00:29]} 33. c3 {[%emt 0:00:48]} c5 {[%emt 0:00:31]} 34. Ne5 {[%emt 0:00:41]} cxd4 {[%emt 0:00:17]} 35. cxd4 {[%emt 0:00:11]} Nxd4 {[%emt 0:00:08]} 36. Nd3 {[%emt 0:01:10]} Nf3 {[%emt 0:00:45]} 37. Qh3 {[%emt 0:00:22]} Re3 {[%emt 0:00:28]} 0-1

[Event "Czech Open-E Teams 2022"]
[Site "Pardubice"]
[Date "2022.07.17"]
[Round "6.25"]
[White "Cech, Pavel"]
[Black "Dolensky, Filip"]
[Result "1-0"]
[ECO "D01"]
[WhiteElo "2358"]
[BlackElo "2051"]
[Annotator "ChessBase"]
[PlyCount "55"]
[EventDate "2022.07.14"]
[EventType "team-tourn"]
[EventCountry "CZE"]
[SourceTitle "playchess.com"]
[Source "ChessBase"]
[SourceQuality "1"]
[TimeControl "5400+30"]

1. d4 {[%emt 0:02:18]} Nf6 {[%emt 0:00:48]} 2. Bg5 {[%emt 0:00:22]} d5 {[%emt 0:00:33]} 3. Nc3 {[%emt 0:02:05]} c6 {[%emt 0:02:44]} 4. e3 {[%emt 0:05:49]} h6 {[%emt 0:00:30]} 5. Bh4 {[%emt 0:02:07]} e6 {[%emt 0:01:06]} 6. Nf3 {[%emt 0:00:32]} Be7 {[%emt 0:00:33]} 7. Ne5 {[%emt 0:10:52]} Nbd7 {[%emt 0:04:21]} 8. f4 {[%emt 0:00:20]} Nxe5 {[%emt 0:08:16]} 9. fxe5 {[%emt 0:01:09]} Nd7 {[%emt 0:00:22]} 10. Bxe7 {[%emt 0:02:28]} Qxe7 {[%emt 0:01:19]} 11. Bd3 {[%emt 0:00:21]} O-O {[%emt 0:07:57]} 12. Qh5 {[%emt 0:24:04]} f5 {[%emt 0:05:47]} 13. g4 {[%emt 0:08:38]} Qg5 {[%emt 0:08:47]} 14. Qxg5 {[%emt 0:00:41]} hxg5 {[%emt 0:01:42]} 15. gxf5 {[%emt 0:05:09]} exf5 {[%emt 0:00:51]} 16. Kd2 {[%emt 0:00:16]} g6 {[%emt 0:14:44]} 17. Rag1 {[%emt 0:00:30]} Kf7 {[%emt 0:02:44]} 18. Rxg5 {[%emt 0:00:25]} Rg8 {[%emt 0:00:46]} 19. h4 {[%emt 0:05:44]} Rh8 {[%emt 0:05:48]} 20. h5 {[%emt 0:06:03]} Rxh5 {[%emt 0:01:36]} 21. Rhxh5 {[%emt 0:00:30]} gxh5 {[%emt 0:00:02]} 22. Rxf5+ {[%emt 0:02:55]} Ke7 {[%emt 0:00:52]} 23. Rxh5 {[%emt 0:00:18]} Nf8 {[%emt 0:00:16]} 24. Ne2 {[%emt 0:01:17]} Bg4 {[%emt 0:01:25]} 25. Rg5 {[%emt 0:00:47]} Be6 {[%emt 0:00:53]} 26. Rg7+ {[%emt 0:01:06]} Bf7 {[%emt 0:00:17]} 27. Nf4 {[%emt 0:00:07]} Rd8 {[%emt 0:02:12]} 28. Bf5 {[%emt 0:00:37]} 1-0

[Event "Czech Open-E Teams 2022"]
[Site "Pardubice"]
[Date "2022.07.17"]
[Round "6.26"]
[White "Hurtik, Matej"]
[Black "Sodoma, Jan"]
[Result "0-1"]
[ECO "C50"]
[WhiteElo "2018"]
[BlackElo "2312"]
[Annotator "ChessBase"]
[PlyCount "78"]
[EventDate "2022.07.14"]
[EventType "team-tourn"]
[EventCountry "CZE"]
[SourceTitle "playchess.com"]
[Source "ChessBase"]
[SourceQuality "1"]
[TimeControl "5400+30"]

1. e4 e5 {[%emt 0:07:48]} 2. Nf3 {[%emt 0:00:48]} Nc6 {[%emt 0:00:03]} 3. Bc4 {[%emt 0:00:11]} Nf6 {[%emt 0:00:10]} 4. d3 {[%emt 0:03:10]} Bc5 {[%emt 0:00:17]} 5. O-O {[%emt 0:01:27]} a6 {[%emt 0:01:31]} 6. a4 {[%emt 0:01:37]} h6 {[%emt 0:01:06]} 7. c3 {[%emt 0:01:31]} Ba7 {[%emt 0:00:54]} 8. Be3 {[%emt 0:06:53]} O-O {[%emt 0:03:37]} 9. Re1 {[%emt 0:10:46]} d6 {[%emt 0:05:27]} 10. Nbd2 {[%emt 0:09:20]} Ne7 {[%emt 0:01:03]} 11. h3 {[%emt 0:05:19]} Ng6 {[%emt 0:00:08]} 12. d4 {[%emt 0:04:41]} exd4 {[%emt 0:02:55]} 13. cxd4 {[%emt 0:00:11]} d5 {[%emt 0:00:11]} 14. Bb3 {[%emt 0:11:43]} dxe4 {[%emt 0:04:46]} 15. Ne5 {[%emt 0:02:09]} Ne7 {[%emt 0:00:19]} 16. Nb1 {[%emt 0:22:14]} c6 {[%emt 0:04:31]} 17. Qd2 {[%emt 0:02:05]} Nf5 {[%emt 0:00:39]} 18. Nc3 {[%emt 0:02:00]} Bxd4 {[%emt 0:07:43]} 19. Rad1 {[%emt 0:00:52]} c5 {[%emt 0:00:06]} 20. g4 {[%emt 0:05:16]} Nh4 {[%emt 0:02:47]} 21. Bxd4 {[%emt 0:01:35]} cxd4 {[%emt 0:00:05]} 22. Qxd4 {[%emt 0:00:16]} Qe7 {[%emt 0:01:27]} 23. Kh1 {[%emt 0:04:46]} Be6 {[%emt 0:00:25]} 24. Bxe6 {[%emt 0:00:07]} Qxe6 {[%emt 0:00:06]} 25. Nxe4 {[%emt 0:02:03]} Rfe8 {[%emt 0:10:56]} 26. Nd6 {[%emt 0:01:04]} Rad8 {[%emt 0:02:50]} 27. f4 {[%emt 0:01:24]} Re7 {[%emt 0:12:09]} 28. Qc5 {[%emt 0:00:27]} Qb3 {[%emt 0:02:46]} 29. Qc3 {[%emt 0:00:02]} Qxa4 {[%emt 0:02:56]} 30. Rd4 {[%emt 0:00:04]} Qa2 {[%emt 0:00:10]} 31. Ndxf7 {[%emt 0:00:15]} Rxd4 {[%emt 0:00:52]} 32. Qxd4 {[%emt 0:00:17]} Qxf7 {[%emt 0:00:47]} 33. Qf2 {[%emt 0:01:03]} Qd5+ {[%emt 0:00:10]} 34. Kg1 {[%emt 0:00:19]} Rxe5 {[%emt 0:01:06]} 35. fxe5 {[%emt 0:00:31]} Nf3+ {[%emt 0:00:06]} 36. Kf1 {[%emt 0:00:05]} Ne4 {[%emt 0:00:16]} 37. Rxe4 {[%emt 0:01:45]} Nd2+ {[%emt 0:01:40]} 38. Ke1 {[%emt 0:00:42]} Nxe4 {[%emt 0:00:10]} 39. Qf5 {[%emt 0:00:26]} Qd2+ {[%emt 0:00:12]} 0-1

[Event "Czech Open-E Teams 2022"]
[Site "Pardubice"]
[Date "2022.07.17"]
[Round "6.27"]
[White "Vitak, Jiri"]
[Black "Hofman, Krystof"]
[Result "1-0"]
[ECO "E63"]
[WhiteElo "2223"]
[BlackElo "1972"]
[Annotator "ChessBase"]
[PlyCount "101"]
[EventDate "2022.07.14"]
[EventType "team-tourn"]
[EventCountry "CZE"]
[SourceTitle "playchess.com"]
[Source "ChessBase"]
[SourceQuality "1"]
[TimeControl "5400+30"]

1. d4 {[%emt 0:02:40]} Nf6 {[%emt 0:05:42]} 2. Nf3 {[%emt 0:00:10]} g6 {[%emt 0:00:16]} 3. g3 {[%emt 0:00:49]} Bg7 {[%emt 0:00:06]} 4. Bg2 {[%emt 0:00:05]} O-O {[%emt 0:00:17]} 5. O-O {[%emt 0:00:06]} d6 {[%emt 0:00:06]} 6. c4 {[%emt 0:01:49]} a6 {[%emt 0:02:35]} 7. Nc3 {[%emt 0:01:09]} Nc6 {[%emt 0:01:17]} 8. b3 {[%emt 0:08:23]} e5 {[%emt 0:03:47]} 9. Bb2 {[%emt 0:08:03]} Nd7 {[%emt 0:06:52]} 10. dxe5 {[%emt 0:03:18]} Ncxe5 {[%emt 0:03:04]} 11. Nxe5 {[%emt 0:00:54]} Nxe5 {[%emt 0:00:49]} 12. Qd2 {[%emt 0:00:43]} Rb8 {[%emt 0:05:10]} 13. f4 {[%emt 0:11:22]} Nd7 {[%emt 0:05:48]} 14. e4 {[%emt 0:10:39]} b6 {[%emt 0:07:52]} 15. Nd5 {[%emt 0:02:55]} Bb7 {[%emt 0:04:39]} 16. Rae1 {[%emt 0:05:59]} Re8 {[%emt 0:03:21]} 17. Bxg7 {[%emt 0:03:37]} Kxg7 {[%emt 0:02:06]} 18. Qd4+ {[%emt 0:00:06]} f6 {[%emt 0:05:47]} 19. Bh3 {[%emt 0:03:20]} Nc5 {[%emt 0:02:33]} 20. e5 {[%emt 0:05:36]} Bxd5 {[%emt 0:02:49]} 21. cxd5 {[%emt 0:00:22]} dxe5 {[%emt 0:00:52]} 22. fxe5 f5 {[%emt 0:00:53]} 23. Bg2 {[%emt 0:08:39]} Qg5 {[%emt 0:03:33]} 24. b4 {[%emt 0:02:32]} Nd7 {[%emt 0:01:45]} 25. e6+ {[%emt 0:09:00]} Nf6 {[%emt 0:01:32]} 26. Rc1 {[%emt 0:01:06]} Re7 {[%emt 0:01:11]} 27. Rc3 {[%emt 0:01:08]} Rd8 {[%emt 0:03:52]} 28. Qe5 {[%emt 0:00:45]} Kg8 {[%emt 0:05:21]} 29. Rxc7 {[%emt 0:05:35]} Ng4 {[%emt 0:09:37]} 30. Qc3 {[%emt 0:00:19]} Rxc7 {[%emt 0:00:22]} 31. Qxc7 {[%emt 0:00:13]} Qe3+ {[%emt 0:00:10]} 32. Kh1 {[%emt 0:00:12]} Rf8 {[%emt 0:00:20]} 33. Qf4 {[%emt 0:02:33]} Qe2 {[%emt 0:01:19]} 34. Qf3 {[%emt 0:00:59]} Qd2 {[%emt 0:00:26]} 35. h3 {[%emt 0:01:06]} Ne3 {[%emt 0:00:36]} 36. Rf2 {[%emt 0:00:12]} Qd4 {[%emt 0:02:51]} 37. Re2 {[%emt 0:01:35]} f4 {[%emt 0:01:48]} 38. gxf4 {[%emt 0:00:47]} Nxg2 {[%emt 0:01:36]} 39. Qxg2 {[%emt 0:00:38]} Qxf4 {[%emt 0:00:20]} 40. e7 {[%emt 0:00:22]} Re8 {[%emt 0:00:40]} 41. Qe4 {[%emt 0:00:32]} Qc1+ {[%emt 0:01:10]} 42. Kh2 {[%emt 0:00:14]} Qc7+ {[%emt 0:00:16]} 43. Kg2 {[%emt 0:00:05]} Qc1 {[%emt 0:00:49]} 44. Qe6+ {[%emt 0:00:28]} Kg7 {[%emt 0:00:08]} 45. Qe5+ {[%emt 0:00:05]} Kg8 {[%emt 0:00:23]} 46. d6 {[%emt 0:00:22]} h5 {[%emt 0:00:57]} 47. Rf2 {[%emt 0:00:37]} Qc4 {[%emt 0:01:03]} 48. Qf4 {[%emt 0:01:33]} Qc6+ {[%emt 0:00:24]} 49. Kh2 {[%emt 0:00:08]} Kh7 {[%emt 0:01:26]} 50. Qf7+ {[%emt 0:00:16]} Kh6 {[%emt 0:00:12]} 51. Qf8+ {[%emt 0:00:09]} 1-0

[Event "Czech Open-E Teams 2022"]
[Site "Pardubice"]
[Date "2022.07.17"]
[Round "6.28"]
[White "Dolensky, Milan"]
[Black "Sykora, Marek"]
[Result "1-0"]
[ECO "C50"]
[WhiteElo "2073"]
[BlackElo "2240"]
[Annotator "ChessBase"]
[PlyCount "117"]
[EventDate "2022.07.14"]
[EventType "team-tourn"]
[EventCountry "CZE"]
[SourceTitle "playchess.com"]
[Source "ChessBase"]
[SourceQuality "1"]
[TimeControl "5400+30"]

1. e4 {[%emt 0:00:02]} e5 {[%emt 0:02:21]} 2. Nf3 {[%emt 0:00:06]} Nc6 {[%emt 0:00:20]} 3. Bc4 {[%emt 0:00:08]} Bc5 {[%emt 0:00:35]} 4. d3 {[%emt 0:02:56]} d6 {[%emt 0:00:46]} 5. c3 {[%emt 0:00:20]} Nf6 {[%emt 0:00:10]} 6. Nbd2 {[%emt 0:01:37]} O-O {[%emt 0:01:14]} 7. a4 {[%emt 0:04:40]} a6 {[%emt 0:01:36]} 8. Bb3 {[%emt 0:01:21]} Be6 {[%emt 0:08:15]} 9. Bc2 {[%emt 0:07:50]} d5 {[%emt 0:12:12]} 10. Qe2 {[%emt 0:07:32]} dxe4 {[%emt 0:07:01]} 11. dxe4 {[%emt 0:01:29]} Nd7 {[%emt 0:04:06]} 12. O-O {[%emt 0:03:37]} f6 {[%emt 0:00:59]} 13. Nc4 {[%emt 0:06:45]} b5 {[%emt 0:06:22]} 14. Ne3 {[%emt 0:03:24]} b4 {[%emt 0:01:31]} 15. Nd5 {[%emt 0:03:25]} bxc3 {[%emt 0:02:43]} 16. bxc3 {[%emt 0:00:16]} Na5 {[%emt 0:07:35]} 17. Rd1 {[%emt 0:01:53]} c6 {[%emt 0:04:38]} 18. Ne3 {[%emt 0:03:32]} Nb3 {[%emt 0:04:31]} 19. Rb1 {[%emt 0:06:02]} Nxc1 {[%emt 0:00:06]} 20. Rbxc1 {[%emt 0:00:19]} Qe8 {[%emt 0:06:36]} 21. Rb1 {[%emt 0:00:46]} a5 {[%emt 0:02:12]} 22. Bb3 {[%emt 0:01:24]} Nb6 {[%emt 0:07:44]} 23. Qa2 {[%emt 0:02:01]} Bxb3 {[%emt 0:01:24]} 24. Rxb3 {[%emt 0:03:40]} Qf7 {[%emt 0:01:41]} 25. Nf5 {[%emt 0:01:23]} Rfd8 {[%emt 0:01:48]} 26. Rdb1 {[%emt 0:02:03]} Kf8 {[%emt 0:03:54]} 27. Qc2 {[%emt 0:00:32]} Rab8 {[%emt 0:01:00]} 28. g3 {[%emt 0:00:22]} Qc4 {[%emt 0:04:07]} 29. Kg2 {[%emt 0:05:52]} g6 {[%emt 0:04:10]} 30. Ne3 {[%emt 0:01:15]} Qa6 {[%emt 0:01:33]} 31. Ng4 {[%emt 0:00:07]} Ke7 {[%emt 0:01:36]} 32. Qc1 {[%emt 0:00:17]} Nd7 {[%emt 0:01:06]} 33. Rxb8 {[%emt 0:00:21]} Rxb8 {[%emt 0:00:08]} 34. Rxb8 {[%emt 0:00:05]} Nxb8 {[%emt 0:00:11]} 35. Qh6 {[%emt 0:00:01]} Qc4 {[%emt 0:00:48]} 36. Nxf6 {[%emt 0:04:29]} Kxf6 {[%emt 0:00:26]} 37. Qg5+ {[%emt 0:00:06]} Kg7 {[%emt 0:00:34]} 38. Qxe5+ {[%emt 0:00:07]} Kh6 {[%emt 0:00:51]} 39. Qxb8 {[%emt 0:01:16]} Qxe4 {[%emt 0:00:16]} 40. Qe5 {[%emt 0:01:53]} Qd5 {[%emt 0:00:46]} 41. h4 Bd6 {[%emt 0:00:00]} 42. Qxd5 {[%emt 0:03:16]} cxd5 43. Nd4 {[%emt 0:00:16]} Kg7 {[%emt 0:01:07]} 44. f4 {[%emt 0:01:29]} Kf6 {[%emt 0:00:37]} 45. Kf3 {[%emt 0:00:11]} h5 {[%emt 0:00:19]} 46. Nb3 {[%emt 0:01:04]} Bc7 {[%emt 0:00:11]} 47. Nd4 {[%emt 0:02:35]} Bb6 {[%emt 0:00:40]} 48. Nc2 {[%emt 0:00:07]} Ke6 {[%emt 0:00:35]} 49. g4 {[%emt 0:00:16]} Bd8 {[%emt 0:00:30]} 50. Nd4+ {[%emt 0:01:28]} Kd6 {[%emt 0:00:30]} 51. g5 {[%emt 0:02:01]} Bb6 {[%emt 0:00:41]} 52. f5 {[%emt 0:00:46]} gxf5 {[%emt 0:00:34]} 53. Kf4 {[%emt 0:00:09]} Ke7 {[%emt 0:00:36]} 54. Kxf5 {[%emt 0:00:12]} Kf7 {[%emt 0:00:08]} 55. g6+ {[%emt 0:00:30]} Kg7 {[%emt 0:00:51]} 56. Kg5 {[%emt 0:00:10]} Bd8+ {[%emt 0:00:17]} 57. Kxh5 {[%emt 0:00:08]} Bf6 {[%emt 0:00:05]} 58. Nf5+ {[%emt 0:00:57]} Kf8 {[%emt 0:01:15]} 59. Ne3 {[%emt 0:00:21]} 1-0